Cogmind - Beta 13 @@@ ROGUE MODE // 2024.05.02 @ 18:37:05 Player: Dumalacath Result: Self-destructed Performance ------------- Evolutions (5) 2500 Regions Visited (10) 2000 Robots Destroyed (64) 320 Value Destroyed (2400) 2400 Prototype IDs (1) 20 Alien Tech Used (0) 0 Bonus (0) 0 TOTAL SCORE: 7240 Bonus ------- None Cogmind --------- Core Integrity 814/1000 Matter 120/300 Energy 80/100 System Corruption 0% Temperature Cool (42) Movement Core (700) Ox13 Location -5/Factory Parts ------- > --- POWER (1) -------- (None) > --- PROPULSION (5) --- (None) > --- UTILITY (7) ------ High-capacity Storage Unit > --- WEAPON (4) ------- (None) > --- INVENTORY (20) --- Light Nuclear Core Light Fission Core Improved Heat Sink Improved Heat Sink Medium Matter Pod (0) Matter Compressor (0) Advanced Visual Processing Unit Weapon Shielding Layered Medium Armor Plating Heavy Reflective Plating Makeshift Hacking Suite Makeshift System Shield Long-range Tractor Beam High-powered Shotgun Coil Gun Assault Cannon Peak State ------------ > --- POWER ------------ Light Fission Core > --- PROPULSION ------- Advanced Treads Advanced Treads Advanced Treads Advanced Treads > --- UTILITY ---------- Improved Cooling System High-capacity Storage Unit Improved Signal Interpreter Improved Targeting Computer Kinecellerator Improved Light Armor Plating Layered Medium Armor Plating > --- WEAPON ----------- Flak Gun Coil Gun Gauss Cannon > --- INVENTORY -------- Nuclear Core Light Nuclear Core Fission Core Advanced Treads Improved Heat Sink Improved Heat Sink Medium Matter Pod Medium Matter Pod Advanced Visual Processing Unit Kinecellerator Weapon Shielding Medium Armor Plating Improved Light Armor Plating Insulated Plating Makeshift Hacking Suite Makeshift System Shield Long-range Tractor Beam High-powered Shotgun Gauss Rifle Rocket Launcher [Rating: 57] Favorites ----------- Power Light Angular Momentum Engine Engine Light Angular Momentum Engine Power Core Nuclear Core Propulsion Advanced Treads Treads Advanced Treads Leg Aluminum Leg Utility High-capacity Storage Unit Device Kinecellerator Storage High-capacity Storage Unit Processor Improved Signal Interpreter Protection Hardened Medium Armor Plating Weapon Flak Cannon Energy Gun Medium Laser Energy Cannon Ion Cannon Ballistic Gun High-powered Shotgun Ballistic Cannon Flak Cannon Launcher Rocket Launcher Build | -11 -10 -10 -10 -9 -8 -7 -7 -7 -6 -5 ------- Run | Yrd Mat Min Exi Min Mat Fac Low Low Fac Fac Slots Evolved 10 | . . . . . 4 2 . . 2 2 Power . | . . . . . . . . . . . Propulsion 3 | . . . . . 2 . . . . 1 Utility 5 | . . . . . 1 2 . . 2 . Weapon 2 | . . . . . 1 . . . . 1 Parts Attached 73 | 6 2 5 . 3 15 10 3 6 18 5 Power 8 | 1 . 1 . . 1 1 . 1 2 1 Engine 2 | 1 . 1 . . . . . . . . Core 6 | . . . . . 1 1 . 1 2 1 Reactor . | . . . . . . . . . . . Propulsion 12 | 2 . 1 . . 5 1 . 1 2 . Treads 8 | . . . . . 4 1 . 1 2 . Leg 4 | 2 . 1 . . 1 . . . . . Wheel . | . . . . . . . . . . . Hover . | . . . . . . . . . . . Flight . | . . . . . . . . . . . Utility 24 | 1 2 1 . . 4 3 3 . 8 2 Device 7 | . . . . . . 1 1 . 4 1 Storage 4 | 1 1 1 . . 1 . . . . . Processor 3 | . 1 . . . 1 1 . . . . Hackware . | . . . . . . . . . . . Protection 10 | . . . . . 2 1 2 . 4 1 Artifact . | . . . . . . . . . . . Weapon 29 | 2 . 2 . 3 5 5 . 4 6 2 Energy Gun 2 | 2 . . . . . . . . . . Energy Cannon 2 | . . . . . 2 . . . . . Ballistic Gun 13 | . . 1 . . 1 4 . 1 5 1 Ballistic Cannon 6 | . . 1 . 1 1 1 . 1 1 . Launcher 6 | . . . . 2 1 . . 2 . 1 Special Weapon . | . . . . . . . . . . . Impact Weapon . | . . . . . . . . . . . Slashing Weapon . | . . . . . . . . . . . Piercing Weapon . | . . . . . . . . . . . Special Melee Weapon . | . . . . . . . . . . . Unidentified Prototypes 1 | . . . . . . 1 . . . . Parts Lost 27 | . . . . . . . . 2 8 17 Power 2 | . . . . . . . . . . 2 Propulsion 7 | . . . . . . . . 1 3 3 Utility 11 | . . . . . . . . . 4 7 Weapon 7 | . . . . . . . . 1 1 5 Highest Loss Streak 9 | . . . . . . . . 2 5 9 To Critical Strikes . | . . . . . . . . . . . Average Slot Usage (%) 97 | . 91 100 100 100 95 100 100 100 95 74 Engine 4 | . 14 14 14 14 5 . . . . . Core 4 | . . . . . 3 7 7 7 6 4 Treads 18 | . . . . . 33 30 30 30 23 11 Leg 9 | . 28 28 28 28 1 . . . . . Device 4 | . . . . . . 7 7 7 12 8 Storage 9 | . 15 14 14 14 9 7 7 7 6 5 Processor 13 | . 4 14 14 14 9 15 15 15 13 9 Protection 5 | . . . . . 7 7 7 7 12 11 Ballistic Gun 12 | . . 12 14 14 8 10 15 15 14 16 Ballistic Cannon 8 | . . 12 14 5 9 11 7 2 3 . Launcher 1 | . . . . 8 . . . 4 . 3 Naked Turns . | . . . . . . . . . . . Heaviest Build 81 | 14 14 38 38 38 67 76 74 74 80 81 Greatest Support 88 | 20 20 25 25 25 88 88 88 88 88 66 Greatest Overweight (x) 14 | 3 . 1 1 1 14 1 . . 1 3 Average Overweight (x) . | . . . 1 1 . . . . . 1 Largest Inventory Capacity 20 | 8 10 15 15 15 20 20 20 20 20 20 Average Capacity 17 | 7 8 13 15 15 19 20 20 20 20 20 Most Carried 20 | 6 8 15 14 14 20 20 20 20 20 20 Average Carried 16 | 4 6 12 13 14 16 19 19 19 18 18 Final Capacity 20 | 8 8 15 15 15 20 20 20 20 20 20 Final Carried 20 | 6 8 14 14 14 20 20 20 20 20 17 Class Distribution -------------------- 52% | Gunner 35% | Mutant 12% | Tank Dominant Class ---------------- Mutant | -10/Materials Mutant | -10/Mines Mutant | -10/Exiles Mutant | -9/Mines Tank | -8/Materials Gunner | -7/Factory Gunner | -7/Lower Caves Gunner | -7/Lower Caves Gunner | -6/Factory Gunner | -5/Factory Resources | -11 -10 -10 -10 -9 -8 -7 -7 -7 -6 -5 ----------- Run | Yrd Mat Min Exi Min Mat Fac Low Low Fac Fac Matter Collected 2544 | 260 . 217 . 115 177 666 225 362 416 106 Remotely . | . . . . . . . . . . . Salvage Created 2139 | 100 . 139 . 128 214 816 162 136 279 165 Parts 117 | 3 . 13 . 3 8 43 6 12 13 16 Haulers Intercepted 3 | . . . . . 1 2 . . . . Recyclers Shooed 6 | . . . . . 1 3 . . 2 . Parts Field Recycled . | . . . . . . . . . . . Retrieved Matter . | . . . . . . . . . . . Parts Self-Destructed 20 | . . . . . . . 6 14 . . Prevented . | . . . . . . . . . . . Kills | -11 -10 -10 -10 -9 -8 -7 -7 -7 -6 -5 ------- Run | Yrd Mat Min Exi Min Mat Fac Low Low Fac Fac Combat Hostiles Destroyed 51 | . . 6 . 3 4 12 4 7 8 7 Guns 23 | . . 3 . 1 . 6 2 3 6 2 Cannons 15 | . . 3 . . 2 6 2 . 2 . AOE 13 | . . . . 2 2 . . 4 . 5 Classes Destroyed 10 | 1 . 3 . . 1 5 . . . . Worker 3 | . . . . . . 3 . . . . Builder 2 | . . . . . . 1 . . 1 . Tunneler 1 | . . . . . . 1 . . . . Hauler 3 | . . . . . 1 2 . . . . Recycler 4 | 1 . . . 1 . 2 . . . . Swarmer 16 | . . 3 . . . . . 6 3 4 Grunt 18 | . . 1 . 3 3 8 . . 1 2 Sentry 7 | . . 2 . . 1 1 1 1 1 . Hunter 7 | . . . . . . 1 2 . 3 1 Programmer 3 | . . . . . . 2 1 . . . Best Kill Streak 6 | 1 . 5 . 3 3 4 2 3 3 6 Combat Bots Only 6 | . . 5 . 3 3 3 2 3 3 6 Max Kills in Single Turn 3 | 1 . 1 . 1 2 3 1 2 2 2 Gunslinging . | . . . . . . . . . . . Exploded 2 | . . . . 1 2 . . 2 . 2 Melee . | . . . . . . . . . . . Uniques/NPCs Destroyed . | . . . . . . . . . . . Combat | -11 -10 -10 -10 -9 -8 -7 -7 -7 -6 -5 -------- Run | Yrd Mat Min Exi Min Mat Fac Low Low Fac Fac Hostile Shots Fired 441 | . . 20 . 12 11 47 67 38 141 105 Missed 119 | . . 7 . 3 2 14 21 11 38 23 Damage Taken 5030 | . . 158 . 179 144 442 462 457 1627 1561 Core 506 | . . 47 . 57 13 59 44 43 57 186 Absorbed by Shields . | . . . . . . . . . . . Core Remaining (%) 85 | 100 . . . 58 97 . . 79 93 . Volleys Fired 151 | 2 . 8 . 10 5 29 16 28 32 21 Largest 3 | 2 . 2 . 2 3 3 3 3 3 3 Hottest 129 | 90 . 69 . 69 129 117 101 104 106 91 Shots Fired 344 | 4 . 16 . 13 10 87 46 39 79 50 Gun 236 | 4 . 8 . 8 2 41 31 32 62 48 Cannon 98 | . . 8 . 3 6 46 15 3 17 . Launcher 10 | . . . . 2 2 . . 4 . 2 Special . | . . . . . . . . . . . Kinetic 327 | . . 16 . 11 5 87 46 35 79 48 Thermal 5 | 2 . . . . 3 . . . . . Explosive 10 | . . . . 2 2 . . 4 . 2 Electromagnetic 2 | 2 . . . . . . . . . . Robot Hit Streak 13 | 1 . 6 . 3 5 13 12 13 12 5 Robot Miss Streak 11 | 1 . 7 . 2 3 5 2 4 11 5 Penetration Max 1 | . . . . . . 1 . . 1 1 Secondary Targets 1 | . . . . . . . . . 1 . Max Gunslinging Chain 1 | . . . . . . . . . 1 . Shots Hit Robots 224 | 2 . 12 . 9 6 51 38 18 56 32 Core Hits 168 | 2 . 11 . 11 9 43 10 16 46 20 Critical Kills 5 | . . . . . 1 3 . . 1 . Critical Parts Destroyed 3 | . . . . . . 1 . . 1 1 Critical Strikes 13 | . . . . . 1 4 1 1 5 1 Destroy 8 | . . . . . 1 4 . . 2 1 Blast 5 | . . . . . . . 1 1 3 . Melee Attacks . | . . . . . . . . . . . Impact . | . . . . . . . . . . . Slashing . | . . . . . . . . . . . Piercing . | . . . . . . . . . . . Sneak Attacks . | . . . . . . . . . . . Combat Hostiles . | . . . . . . . . . . . Follow-up Attacks . | . . . . . . . . . . . Damage Inflicted 5626 | 24 . 260 . 300 327 1249 668 529 1263 1006 Guns 2981 | 24 . 131 . 117 14 557 372 277 874 615 Cannons 1505 | . . 129 . 60 69 577 296 53 321 . Explosions 1100 | . . . . 120 244 81 . 199 65 391 Melee . | . . . . . . . . . . . Ramming 40 | . . . . 3 . 34 . . 3 . Kinetic 4418 | . . 260 . 177 39 1134 668 330 1195 615 Thermal 179 | . . . . . 44 . . . 65 70 Explosive 965 | . . . . 120 244 81 . 199 . 321 Electromagnetic 24 | 24 . . . . . . . . . . Impact . | . . . . . . . . . . . Slashing . | . . . . . . . . . . . Piercing . | . . . . . . . . . . . Highest Corruption 1 | . . . . . . 1 1 1 . . Average Corruption 1 | . . . . . . 1 1 1 . . Corruption Purged . | . . . . . . . . . . . Corruption Blocked . | . . . . . . . . . . . Effects 11 | . . . . . . 6 3 2 . . Message Errors 6 | . . . . . . 2 2 2 . . Heat Flow Errors 1 | . . . . . . 1 . . . . Energy Discharges 2 | . . . . . . 2 . . . . Data Loss (minor) 1 | . . . . . . 1 . . . . Data Loss (major) 1 | . . . . . . . 1 . . . Overload Shots . | . . . . . . . . . . . Overflow Damage 4 | . . . . . . . 4 . . . Projectiles 4 | . . . . . . . 4 . . . Explosions . | . . . . . . . . . . . Melee . | . . . . . . . . . . . Knockbacks 25 | . . 1 . 3 . 14 2 . 5 . Impact . | . . . . . . . . . . . Kinetic 24 | . . 1 . 3 . 13 2 . 5 . Secondary 1 | . . . . . . 1 . . . . Self-Inflicted Damage 63 | . . . . . . . . . 57 6 Shots 2 | . . . . . . . . . 1 1 Rammed 3 | . . . . . . 2 . . 1 . Targets Rammed 5 | . . . . 1 . 3 . . 1 . Kicked 1 | . . . . 1 . . . . . . Crushed 1 | . . . . . . 1 . . . . Highest Temperature 403 | 60 . 63 . 45 63 403 231 90 16 54 Average Temperature 93 | 30 . 25 . 21 27 133 105 21 10 26 Received Heat Transfer 849 | . . 33 . 42 63 147 66 27 66 405 Effects 10 | . . . . . . 4 6 . . . Shutdowns 2 | . . . . . . 2 . . . . Interference 8 | . . . . . . 2 6 . . . Siege Activations . | . . . . . . . . . . . Robots Corrupted . | . . . . . . . . . . . Combat Hostiles . | . . . . . . . . . . . Parts Fried . | . . . . . . . . . . . Impact Corruptions . | . . . . . . . . . . . Robots Melted . | . . . . . . . . . . . Combat Hostiles . | . . . . . . . . . . . Parts Melted . | . . . . . . . . . . . Heat Transferred 224 | . . . . . 74 . . . 50 100 Parts Sabotaged . | . . . . . . . . . . . Parts Stolen . | . . . . . . . . . . . Parts Stripped . | . . . . . . . . . . . Power Chain Reactions . | . . . . . . . . . . . Alert | -11 -10 -10 -10 -9 -8 -7 -7 -7 -6 -5 ------- Run | Yrd Mat Min Exi Min Mat Fac Low Low Fac Fac Peak Influence 397 | 5 7 157 . 102 169 397 . . 184 281 Initial 39 | . 3 2 . . 39 11 . . 28 2 Average 102 | . 5 43 . 96 75 155 . . 91 183 Maximum Alert Level 1 | . . . . . . 1 . . . 1 Low Security (%) 79 | 100 100 100 . 100 100 50 . . 100 35 Level 1 20 | . . . . . . 49 . . . 64 Level 2 . | . . . . . . . . . . . Level 3 . | . . . . . . . . . . . Level 4 . | . . . . . . . . . . . Level 5 . | . . . . . . . . . . . High Security . | . . . . . . . . . . . Max Security . | . . . . . . . . . . . Squads Dispatched 13 | . 1 1 . . 2 5 . . 2 2 Investigation 2 | . . 1 . . . 1 . . . . Extermination 3 | . . . . . . 2 . . 1 . Reinforcement 8 | . 1 . . . 2 2 . . 1 2 Assault . | . . . . . . . . . . . Garrison . | . . . . . . . . . . . Intercept . | . . . . . . . . . . . Searches Triggered . | . . . . . . . . . . . Construction Impeded 1 | . . . . . . . . . 1 . Haulers Reinforced . | . . . . . . . . . . . Active Scanning Responses . | . . . . . . . . . . . Cargo Convoy Interrupts . | . . . . . . . . . . . Stealth | -11 -10 -10 -10 -9 -8 -7 -7 -7 -6 -5 --------- Run | Yrd Mat Min Exi Min Mat Fac Low Low Fac Fac Distress Signals 3 | . . . . . 3 . . . . . Communications Jammed . | . . . . . . . . . . . Distress Signals . | . . . . . . . . . . . Times Spotted 82 | . 1 6 . 15 7 18 4 6 12 13 Peak Tracking Total 12 | . 1 5 . 12 3 3 1 3 4 5 Tactical Retreats 5 | . . . . . 1 1 . . 1 2 Traps | -11 -10 -10 -10 -9 -8 -7 -7 -7 -6 -5 ------- Run | Yrd Mat Min Exi Min Mat Fac Low Low Fac Fac Traps Triggered 1 | . . . . . . 1 . . . . Indirectly . | . . . . . . . . . . . Trap Hack Attempts . | . . . . . . . . . . . Triggered . | . . . . . . . . . . . Disarmed 10 | . 10 . . . . . . . . . Reprogrammed . | . . . . . . . . . . . Reused . | . . . . . . . . . . . Traps Extracted . | . . . . . . . . . . . Installed . | . . . . . . . . . . . Triggered 1 | . . . . . . . . 1 . . Machines | -11 -10 -10 -10 -9 -8 -7 -7 -7 -6 -5 ---------- Run | Yrd Mat Min Exi Min Mat Fac Low Low Fac Fac Machines Disabled 19 | . . . . . . 9 . 1 7 2 Max in Single Turn 3 | . . . . . . 3 . 1 2 1 Machines Repaired . | . . . . . . . . . . . Machines Dismantled . | . . . . . . . . . . . Machines Sabotaged . | . . . . . . . . . . . Overloaded Fab Kills . | . . . . . . . . . . . Hacking | -11 -10 -10 -10 -9 -8 -7 -7 -7 -6 -5 --------- Run | Yrd Mat Min Exi Min Mat Fac Low Low Fac Fac Machines Accessed 16 | . 2 1 4 . 5 2 . . 2 . Terminals 11 | . 2 . . . 5 2 . . 2 . Fabricators . | . . . . . . . . . . . Repair Stations . | . . . . . . . . . . . Recycling Units . | . . . . . . . . . . . Scanalyzers . | . . . . . . . . . . . Garrison Access . | . . . . . . . . . . . Total Hacks 37 | . 8 1 4 . 16 4 . . 4 . Successful 17 | . 5 1 4 . 5 . . . 2 . Failed 20 | . 3 . . . 11 4 . . 2 . Catastrophic 5 | . 1 . . . 2 1 . . 1 . Database Lockouts . | . . . . . . . . . . . Manual 28 | . 4 . 4 . 13 4 . . 3 . Terminals 32 | . 8 . . . 16 4 . . 4 . Fabricators . | . . . . . . . . . . . Repair Stations . | . . . . . . . . . . . Recycling Units . | . . . . . . . . . . . Scanalyzers . | . . . . . . . . . . . Garrison Access . | . . . . . . . . . . . Terminal Hacks 11 | . 3 1 4 . 2 . . . 1 . Record 4 | . . . 4 . . . . . . . Open Door 1 | . . 1 . . . . . . . . Alert Level 1 | . . . . . . . . . 1 . Unreport Threat 1 | . . . . . 1 . . . . . Locate Traps 1 | . 1 . . . . . . . . . Disarm Traps 2 | . 2 . . . . . . . . . Hauler Manifests 1 | . . . . . 1 . . . . . Fabricator Hacks . | . . . . . . . . . . . Repair Station Hacks . | . . . . . . . . . . . Recycling Unit Hacks . | . . . . . . . . . . . Scanalyzer . | . . . . . . . . . . . Garrison Access Hacks . | . . . . . . . . . . . Unauthorized Hacks 6 | . 2 . . . 3 . . . 1 . Terminals 6 | . 2 . . . 3 . . . 1 . Botnet 6 | . 2 . . . 3 . . . 1 . Fabricators . | . . . . . . . . . . . Repair Stations . | . . . . . . . . . . . Recycling Units . | . . . . . . . . . . . Scanalyzers . | . . . . . . . . . . . Garrison Access . | . . . . . . . . . . . Data Cores Recovered . | . . . . . . . . . . . Used . | . . . . . . . . . . . Hacking Detections 11 | . 2 . . . 5 2 . . 2 . Full Trace Events 1 | . . . . . . 1 . . . . Feedback Events 1 | . . . . . . 1 . . . . Corruption 1 | . . . . . . 1 . . . . Feedback Blocked . | . . . . . . . . . . . Robot Schematics Acquired . | . . . . . . . . . . . Robots Built . | . . . . . . . . . . . Authchips . | . . . . . . . . . . . Time . | . . . . . . . . . . . Total Robot Build Rating . | . . . . . . . . . . . Part Schematics Acquired . | . . . . . . . . . . . Parts Built . | . . . . . . . . . . . Authchips . | . . . . . . . . . . . Time . | . . . . . . . . . . . Total Part Build Rating . | . . . . . . . . . . . Parts Repaired . | . . . . . . . . . . . Time . | . . . . . . . . . . . Parts Recycled . | . . . . . . . . . . . Recycled Matter . | . . . . . . . . . . . Retrieved Matter . | . . . . . . . . . . . Retrieved Components . | . . . . . . . . . . . Parts Scanalyzed . | . . . . . . . . . . . Part Schematics Acquired . | . . . . . . . . . . . Parts Damaged . | . . . . . . . . . . . Bothacking | -11 -10 -10 -10 -9 -8 -7 -7 -7 -6 -5 ------------ Run | Yrd Mat Min Exi Min Mat Fac Low Low Fac Fac Used RIF Installer . | . . . . . . . . . . . Robots Hacked . | . . . . . . . . . . . Non-combat . | . . . . . . . . . . . Combat . | . . . . . . . . . . . Robot Hacks Applied . | . . . . . . . . . . . Relay Couplers Released . | . . . . . . . . . . . Fabnet Peak Effective % . | . . . . . . . . . . . Robots Rewired . | . . . . . . . . . . . Allies Hacked . | . . . . . . . . . . . Hacks Repelled . | . . . . . . . . . . . Allies | -11 -10 -10 -10 -9 -8 -7 -7 -7 -6 -5 -------- Run | Yrd Mat Min Exi Min Mat Fac Low Low Fac Fac Total Allies . | . . . . . . . . . . . Largest Group . | . . . . . . . . . . . Highest-Rated Group . | . . . . . . . . . . . Highest-Rated Ally . | . . . . . . . . . . . Total Orders . | . . . . . . . . . . . Ally Attacks . | . . . . . . . . . . . Total Damage . | . . . . . . . . . . . Kills . | . . . . . . . . . . . Allies Corrupted . | . . . . . . . . . . . Allies Melted . | . . . . . . . . . . . Intel | -11 -10 -10 -10 -9 -8 -7 -7 -7 -6 -5 ------- Run | Yrd Mat Min Exi Min Mat Fac Low Low Fac Fac Robot Analysis Total . | . . . . . . . . . . . Derelict Logs Recovered 1 | . . 1 . . . . . . . . Drone Launches . | . . . . . . . . . . . Drone Recoveries . | . . . . . . . . . . . Exploration | -11 -10 -10 -10 -9 -8 -7 -7 -7 -6 -5 ------------- Run | Yrd Mat Min Exi Min Mat Fac Low Low Fac Fac Turns Passed 6422 | 92 117 829 965 117 567 1162 572 734 835 432 Spaces Moved 3567 | 52 91 465 508 46 342 698 351 454 412 148 Core 21 | 20 . . . . 1 . . . . . Treads 2389 | . . . . . 326 698 351 454 412 148 Legs 1157 | 32 91 465 508 46 15 . . . . . Wheels . | . . . . . . . . . . . Hover . | . . . . . . . . . . . Flight . | . . . . . . . . . . . Fastest Speed 50 | 50 120 120 190 190 120 145 145 145 145 225 Average Speed 160 | 137 120 168 190 190 145 145 145 145 169 233 Slowest Speed 750 | 200 120 190 190 190 750 225 145 145 225 385 Overloaded Moves . | . . . . . . . . . . . Propulsion Burnouts . | . . . . . . . . . . . Robots Hopped . | . . . . . . . . . . . Cave-ins Triggered . | . . . . . . . . . . . Exploration Rate (%) 36 | 4 23 73 93 14 39 22 58 48 16 6 Regions Visited 10 Branch Regions 5 Pre-discovered Areas 1 | . . 1 . . . . . . . . Known Exits Taken 9 | . 1 1 1 1 1 1 1 1 1 . Unknown Exits Taken 1 | 1 . . . . . . . . . . Scrap Searched 5 | . . 1 . . . . 2 2 . . Spaces Dug 1 | . . . . . . . . . 1 . Terrain Destroyed 198 | . . . . 14 17 35 6 40 35 51 Melee . | . . . . . . . . . . . Projectile 33 | . . . . . 1 15 6 5 4 2 AOE 165 | . . . . 14 16 20 . 35 31 49 Terrain Rammed . | . . . . . . . . . . . Walls Destroyed . | . . . . . . . . . . . Machines Disabled . | . . . . . . . . . . . Actions | -11 -10 -10 -10 -9 -8 -7 -7 -7 -6 -5 --------- Run | Yrd Mat Min Exi Min Mat Fac Low Low Fac Fac Total 3971 | 65 99 495 509 61 401 790 383 495 482 191 Wait 77 | . . 2 . 2 15 28 7 . 7 16 Move 3557 | 51 90 464 507 45 341 697 350 453 411 148 Hop . | . . . . . . . . . . . Pick Up 57 | 6 4 9 1 . 15 10 3 2 6 1 Fast Attach 18 | 6 2 2 . . 4 3 . . . 1 Attach 20 | . . . . . 4 2 . 2 8 4 Detach 1 | . . . . . 1 . . . . . Swap 35 | . . 3 . 3 7 5 3 4 10 . Drop 45 | . 3 7 1 . 9 13 4 1 7 . Fire 151 | 2 . 8 . 10 5 29 16 28 32 21 Melee . | . . . . . . . . . . . Ram . | . . . . . . . . . . . Kick 1 | . . . . 1 . . . . . . Crush 4 | . . . . . . 3 . . 1 . Escape Stasis . | . . . . . . . . . . . Rewire 5 | . . . . . . . . 5 . . Trap . | . . . . . . . . . . . Miscellaneous . | . . . . . . . . . . . Route ------- -11/Scrapyard -10/Materials -10/Mines (discovered 3 exits: *Mat x2 / *Exi) -10/Exiles (discovered 2 exits: *Min x2) -9/Mines -8/Materials -7/Factory -7/Lower Caves -7/Lower Caves -6/Factory -5/Factory (discovered 1 exit: *Upp) History --------- Turn | Location | Event 39 | -11/Scrapyard | Discovered new exit (range 16) 93 | -11/Scrapyard | Entered Materials 189 | -10/Materials | Discovered new exit (range 10) 198 | -10/Materials | Identified exit to Mines 210 | -10/Materials | Entered Mines 255 | -10/Mines | Deemed a non-threat by the Exiles lab entrance 255 | -10/Mines | Discovered new exit (range 5) 258 | -10/Mines | Identified exit to Exiles 300 | -10/Mines | Met a Derelict shopkeep closing up shop 335 | -10/Mines | Build established: Mutant 490 | -10/Mines | Discovered new exit (range 14) 493 | -10/Mines | Discovered new exit (range 7) 505 | -10/Mines | Identified exit to Materials 1039 | -10/Mines | Entered Exiles 1039 | -10/Exiles | Found Exiles lab abandoned 1068 | -10/Exiles | Discovered new exit (range 15) 1983 | -10/Exiles | Discovered new exit (range 12) 2002 | -10/Exiles | Identified exit to Mines 2004 | -10/Exiles | Entered Mines 2006 | -9/Mines | Discovered new exit (range 11) 2077 | -9/Mines | Assembled infested the area 2082 | -9/Mines | Assisted by a Guerilla fighting off Assembled 2119 | -9/Mines | Identified exit to Materials 2121 | -9/Mines | Entered Materials 2121 | -8/Materials | Evolved 4 slots: Propulsion x2, Utility x1, Weapon x1 2545 | -8/Materials | Build established: Tank 2636 | -8/Materials | Discovered new exit (range 3) 2637 | -8/Materials | Identified exit to Factory 2647 | -8/Materials | Met 7R-MNS 2688 | -8/Materials | Entered Factory 2688 | -7/Factory | Evolved 2 slots: Utility x2 2689 | -7/Factory | Caught up to 7R-MNS 2997 | -7/Factory | Discovered new exit (range 13) 3006 | -7/Factory | Build established: Gunner 3013 | -7/Factory | Identified exit to Lower Caves 3850 | -7/Factory | Entered Lower Caves 3870 | -7/Lower Caves | Encountered a Warlord checkpoint 4267 | -7/Lower Caves | Discovered new exit (range 13) 4274 | -7/Lower Caves | Attracted the attention of an 0b10 checkpoint 4325 | -7/Lower Caves | Identified exit to Lower Caves 4422 | -7/Lower Caves | Entered another Lower Caves area 4532 | -7/Lower Caves | Spotted B-75 Beast 4554 | -7/Lower Caves | Attracted the attention of an 0b10 outpost 4834 | -7/Lower Caves | Discovered new exit (range 10) 4856 | -7/Lower Caves | Identified exit to Factory 5156 | -7/Lower Caves | Entered Factory 5156 | -6/Factory | Evolved 2 slots: Utility x2 5209 | -6/Factory | Spotted B-75 Beast 5701 | -6/Factory | Lost 5 parts (2n2u1w) 5710 | -6/Factory | Found Hvy. Reflective Plating 5947 | -6/Factory | Discovered new exit (range 14) 5989 | -6/Factory | Identified exit to Factory 5991 | -6/Factory | Entered another Factory area 5991 | -5/Factory | Evolved 2 slots: Propulsion x1, Weapon x1 6021 | -5/Factory | Discovered new exit (range 15) 6072 | -5/Factory | Identified exit to Upper Caves 6397 | -5/Factory | Lost 5 parts (1p1n3u) 6423 | -5/Factory | Self-destructed Last Messages --------------- 06412_ Slug penetrates X-77 Beamer. 06412_ X-77 Beamer suffers critical hit (Destroy). 06412_ Destroyed Adv. VSS Leg. 06413_ H-71 Marshal calls for reinforcements. 06413_ ALERT: Hostile activity reported, dispatching reinforcements to area. 06415_ Adv. Treads destroyed. 06415_ Rocket Launcher destroyed. 06415_ Slug penetrates Wall. 06418_ Slug penetrates X-77 Beamer. 06419_ KE Penetrator destroyed. 06419_ Nuclear Core destroyed. 06419_ Coil Gun destroyed. 06421_ Slug penetrates X-77 Beamer. 06422_ Kinecellerator destroyed. 06422_ T-07 Excavator destroyed. 06423_ Gauss Rifle destroyed. 06423_ Lyr. Light Armor Plating destroyed. 06423_ Imp. Cooling System destroyed. Map ----- +----------------------------------------------------+ | ???????????????????????# #??# "" !# | | ???????????????????????# #??# # | | ???????????????????????# #??#####+##### | | ???????????????????????# #???# | | ???????????????????????# #???# | | ?????? ?????? "????????# #???# | | ???? # ????????# #???# | | ??? """"+#####??# #???# | | ?? #??# #???# #### | | ?? ##########+########## #??? | | ????" #??? | | ????? #??? | | ???? #??? | | ??? !! #??? | | ???? !! #??? | | ??? ###+#######################??? | | ??? %% # #??????????????????? | | ?? ### #??????????????????? | | ?? !###] #??????????????????? | | ????######### "?# #??????????????????? | | ????????????# "?# """" #??????????????????? | | ????????????# #?# """" #??????????????????? | | ????????????# % ### """" #??????????????????? | | ??????????### "## """" #??????????????????? | | ??????????# % ;###;########+???????????????? | | ??? x @ ! ????????? | | ??? % x !%| ????????? | | ??? H % *= ????????? | | ???? ?????????? | | ???? ?????????? | | ???? ??????????? | | ????? ??????????? | | ?????###### ####+##############??????????? | | ??????????###########????????????????????????????? | | ?????????????????????????????????????????????????? | | ?????????????????????????????????????????????????? | | ?????????????????????????????????????????????????? | | ?????????????????????????????????????????????????? | | ?????????????????????????????????????????????????? | | ?????????????????????????????????????????????????? | | ?????????????????????????????????????????????????? | | ?????????????????????????????????????????????????? | | ?????????????????????????????????????????????????? | | ?????????????????????????????????????????????????? | | ?????????????????????????????????????????????????? | | ?????????????????????????????????????????????????? | | ?????????????????????????????????????????????????? | | ?????????????????????????????????????????????????? | | ?????????????????????????????????????????????????? | | | +----------------------------------------------------+ Best States ------------- Heat Dissipation 67 Energy Generation 18 Energy Capacity 310 Matter Stores 300 Matter Capacity 300 Sight Range 16 Terrain Scan Density 10 Jamming Range 12 Armor Coverage 450 Resistance: EM 15 Evasion (%) 55 Targeting Accuracy 6 Recoil Reduction 4 Kinecelleration 30 Item Schematics ----------------- None Robot Schematics ------------------ None Fabricated ------------ Nothing Alien Tech Used ----------------- None Achievements -------------- None Challenges ------------ None Game ------ Seed RagnarokCompositeMultirail Manual? 0 Play Time 00:51:57 Cumulative 71.0 hours Start 2024.05.02 @ 17:35:33 End 2024.05.02 @ 18:37:05 Sessions 1 Manual Loads 0 Difficulty Rogue Special Mode None Game No. 47 Rogue 47 Adventurer 0 Explorer 0 Win Type - Total 0 Types 0/0/0/0/0/0/0/0/0 Lore% 35 Gallery% 46 Achievement% 41 Wizard Run 0 Options --------- Layout 1 ASCII 0 Keyboard 0 Movement Numpad Keybinds 0 Fullscreen 2 Font 24/Smallcaps Map View 50x35 Zoom Use 0% Tactical HUD 1 Map Filters NONE Filters NONE Steam 1 RUN: f1c70839-3078-4c8c-bc1c-ddd5f137f3ad